[Event "MČR v bleskovém šachu družstev 2019"]
[Site "Teplice, Czech Republic"]
[Date "2019.09.14"]
[Round "12.26"]
[White "Zeman, Matyas"]
[Black "Rolinek, Dominik"]
[Result "0-1"]
[TimeControl "3 mim. + 2 s"]
[WhiteFideId "364398"]
[BlackFideId "384569"]
[WhiteElo "2094"]
[BlackElo "1885"]

1. e3 {[%clk 00:03:03]} d5 {[%clk 00:03:03]} {[%emt 00:00:02]} 2. b3 {[%clk
00:03:04]} {[%emt 00:00:01]} e5 {[%clk 00:03:03]} {[%emt 00:00:02]} 3. Bb2
{[%clk 00:03:05]} Bd6 {[%clk 00:03:03]} {[%emt 00:00:02]} 4. Nf3 {[%clk
00:03:04]} {[%emt 00:00:03]} Nd7 {[%clk 00:03:03]} {[%emt 00:00:02]} 5. d4
{[%clk 00:03:04]} {[%emt 00:00:02]} e4 {[%clk 00:03:04]} {[%emt 00:00:02]} 6.
Nfd2 {[%clk 00:03:04]} {[%emt 00:00:01]} Ne7 {[%clk 00:03:02]} {[%emt
00:00:04]} 7. c4 {[%clk 00:03:04]} {[%emt 00:00:02]} c6 {[%clk 00:03:03]}
{[%emt 00:00:01]} 8. Ba3 {[%clk 00:02:56]} {[%emt 00:00:11]} Bxa3 {[%clk
00:03:02]} {[%emt 00:00:03]} 9. Nxa3 {[%clk 00:02:57]} O-O {[%clk 00:02:58]}
{[%emt 00:00:06]} 10. Nc2 {[%clk 00:02:48]} {[%emt 00:00:11]} f5 {[%clk
00:02:54]} {[%emt 00:00:06]} 11. Be2 {[%clk 00:02:26]} {[%emt 00:00:24]} Ng6
{[%clk 00:02:51]} {[%emt 00:00:06]} 12. g3 {[%clk 00:02:26]} {[%emt 00:00:02]}
Nf6 {[%clk 00:02:48]} {[%emt 00:00:04]} 13. h4 {[%clk 00:02:25]} {[%emt
00:00:03]} Ng4 {[%clk 00:02:40]} {[%emt 00:00:10]} 14. Nf1 {[%clk 00:01:30]}
{[%emt 00:00:57]} Nh8 {[%clk 00:02:34]} {[%emt 00:00:08]} 15. Nh2 {[%clk
00:01:29]} {[%emt 00:00:03]} Nxh2 {[%clk 00:02:34]} {[%emt 00:00:02]} 16. Rxh2
{[%clk 00:01:31]} Nf7 {[%clk 00:02:34]} {[%emt 00:00:02]} 17. Qd2 {[%clk
00:01:27]} {[%emt 00:00:05]} Nh6 {[%clk 00:02:35]} {[%emt 00:00:01]} 18. Kf1
{[%clk 00:00:57]} {[%emt 00:00:33]} Ng4 {[%clk 00:02:32]} {[%emt 00:00:05]} 19.
Bxg4 {[%clk 00:00:55]} {[%emt 00:00:04]} fxg4 {[%clk 00:02:33]} 20. Ne1 {[%clk
00:00:56]} {[%emt 00:00:01]} h6 {[%clk 00:02:12]} {[%emt 00:00:23]} 21. h5
{[%clk 00:00:55]} {[%emt 00:00:02]} b6 {[%clk 00:02:01]} {[%emt 00:00:13]} 22.
Ng2 {[%clk 00:00:38]} {[%emt 00:00:20]} Ba6 {[%clk 00:02:02]} {[%emt 00:00:01]}
23. Rc1 {[%clk 00:00:39]} {[%emt 00:00:01]} Rc8 {[%clk 00:01:49]} {[%emt
00:00:14]} 24. Nf4 {[%clk 00:00:39]} {[%emt 00:00:03]} Qd7 {[%clk 00:01:46]}
{[%emt 00:00:05]} 25. Kg2 {[%clk 00:00:38]} {[%emt 00:00:03]} Qf7 {[%clk
00:01:45]} {[%emt 00:00:02]} 26. cxd5 {[%clk 00:00:31]} {[%emt 00:00:10]} cxd5
{[%clk 00:01:45]} {[%emt 00:00:02]} 27. Rhh1 {[%clk 00:00:32]} {[%emt
00:00:01]} Qd7 {[%clk 00:01:35]} {[%emt 00:00:11]} 28. Qb4 {[%clk 00:00:32]}
{[%emt 00:00:03]} Rxf4 {[%clk 00:01:07]} {[%emt 00:00:30]} 29. Rxc8+ {[%clk
00:00:25]} {[%emt 00:00:09]} Qxc8 {[%clk 00:01:02]} {[%emt 00:00:07]} 30. gxf4
{[%clk 00:00:16]} {[%emt 00:00:11]} Be2 {[%clk 00:01:02]} {[%emt 00:00:01]} 31.
Kg3 {[%clk 00:00:14]} {[%emt 00:00:05]} Bf3 {[%clk 00:01:01]} {[%emt 00:00:02]}
0-1

[Event "MČR v bleskovém šachu družstev 2019"]
[Site "Teplice, Czech Republic"]
[Date "2019.09.14"]
[Round "12.27"]
[White "Richtr, Zdenek"]
[Black "Svanda, Ondrej"]
[Result "0-1"]
[TimeControl "3 mim. + 2 s"]
[BlackTitle "FM"]
[WhiteFideId "301248"]
[BlackFideId "359670"]
[WhiteElo "2138"]
[BlackElo "1924"]

1. e4 {[%clk 00:03:03]} c5 {[%clk 00:03:04]} {[%emt 00:00:02]} 2. Nf3 {[%clk
00:03:03]} {[%emt 00:00:01]} d6 {[%clk 00:03:05]} {[%emt 00:00:01]} 3. d4
{[%clk 00:03:01]} {[%emt 00:00:02]} cxd4 {[%clk 00:03:07]} 4. Qxd4 {[%clk
00:03:00]} {[%emt 00:00:04]} Nc6 {[%clk 00:03:03]} {[%emt 00:00:06]} 5. Bb5
{[%clk 00:03:01]} {[%emt 00:00:02]} Bd7 {[%clk 00:03:03]} {[%emt 00:00:02]} 6.
Bxc6 {[%clk 00:03:01]} {[%emt 00:00:01]} Bxc6 {[%clk 00:03:04]} {[%emt
00:00:01]} 7. Bg5 {[%clk 00:03:00]} {[%emt 00:00:03]} Nf6 {[%clk 00:03:04]}
{[%emt 00:00:03]} 8. Bxf6 {[%clk 00:03:01]} {[%emt 00:00:01]} gxf6 {[%clk
00:02:56]} {[%emt 00:00:10]} 9. Nc3 {[%clk 00:03:01]} e6 {[%clk 00:02:51]}
{[%emt 00:00:08]} 10. O-O-O {[%clk 00:03:01]} {[%emt 00:00:02]} Be7 {[%clk
00:02:52]} {[%emt 00:00:01]} 11. Nh4 {[%clk 00:02:57]} {[%emt 00:00:06]} Qb6
{[%clk 00:02:42]} {[%emt 00:00:11]} 12. Qxb6 {[%clk 00:02:44]} {[%emt
00:00:15]} axb6 {[%clk 00:02:44]} {[%emt 00:00:01]} 13. Rhe1 {[%clk 00:02:34]}
{[%emt 00:00:11]} f5 {[%clk 00:02:40]} {[%emt 00:00:06]} 14. Nf3 {[%clk
00:02:30]} {[%emt 00:00:06]} fxe4 {[%clk 00:02:35]} {[%emt 00:00:08]} 15. Nxe4
{[%clk 00:02:30]} {[%emt 00:00:01]} O-O-O {[%clk 00:02:11]} {[%emt 00:00:26]}
16. Nd4 {[%clk 00:02:26]} {[%emt 00:00:07]} Bd7 {[%clk 00:01:37]} {[%emt
00:00:36]} 17. f4 {[%clk 00:01:54]} {[%emt 00:00:34]} d5 {[%clk 00:01:02]}
{[%emt 00:00:38]} 18. Nc3 {[%clk 00:01:53]} {[%emt 00:00:02]} Bf6 {[%clk
00:01:01]} {[%emt 00:00:03]} 19. Ncb5 {[%clk 00:01:50]} {[%emt 00:00:05]} Bc6
{[%clk 00:00:34]} {[%emt 00:00:29]} 20. Rd3 {[%clk 00:01:43]} {[%emt 00:00:09]}
Kb8 {[%clk 00:00:34]} {[%emt 00:00:02]} 21. b4 {[%clk 00:01:28]} {[%emt
00:00:17]} Rhg8 {[%clk 00:00:30]} {[%emt 00:00:06]} 22. g3 {[%clk 00:01:29]}
{[%emt 00:00:01]} h5 {[%clk 00:00:31]} 23. Nxc6+ {[%clk 00:01:25]} {[%emt
00:00:06]} bxc6 {[%clk 00:00:31]} {[%emt 00:00:02]} 24. Nd4 {[%clk 00:01:26]}
{[%emt 00:00:02]} Kb7 {[%clk 00:00:26]} {[%emt 00:00:06]} 25. c3 {[%clk
00:01:21]} {[%emt 00:00:08]} c5 {[%clk 00:00:20]} {[%emt 00:00:08]} 26. bxc5
{[%clk 00:01:12]} {[%emt 00:00:11]} bxc5 {[%clk 00:00:21]} {[%emt 00:00:01]} 27.
Nb3 {[%clk 00:01:13]} c4 {[%clk 00:00:21]} {[%emt 00:00:03]} 28. Rde3 {[%clk
00:01:05]} {[%emt 00:00:10]} cxb3 {[%clk 00:00:21]} {[%emt 00:00:02]} 29. axb3
{[%clk 00:01:06]} Rc8 {[%clk 00:00:21]} {[%emt 00:00:02]} 30. Kd2 {[%clk
00:01:06]} {[%emt 00:00:02]} h4 {[%clk 00:00:19]} {[%emt 00:00:04]} 31. Kd3
{[%clk 00:01:06]} {[%emt 00:00:02]} Rxc3+ {[%clk 00:00:18]} {[%emt 00:00:03]}
32. Ke2 {[%clk 00:01:04]} {[%emt 00:00:04]} Rc2+ {[%clk 00:00:18]} {[%emt
00:00:02]} 33. Kf3 {[%clk 00:01:04]} Rxh2 {[%clk 00:00:18]} {[%emt 00:00:02]}
34. Rc1 {[%clk 00:01:00]} {[%emt 00:00:06]} Rxg3# {[%clk 00:00:19]} {[%emt
00:00:01]} 0-1

[Event "MČR v bleskovém šachu družstev 2019"]
[Site "Teplice, Czech Republic"]
[Date "2019.09.14"]
[Round "12.28"]
[White "Vavra, Michal"]
[Black "Hosnedl, Matyas"]
[Result "1/2-1/2"]
[TimeControl "3 mim. + 2 s"]
[WhiteFideId "306398"]
[BlackFideId "390011"]
[WhiteElo "2026"]
[BlackElo "1852"]

1. Nf3 {[%clk 00:03:02]} Nf6 {[%clk 00:03:04]} {[%emt 00:00:01]} 2. c4 {[%clk
00:03:01]} {[%emt 00:00:03]} g6 {[%clk 00:03:05]} 3. g3 {[%clk 00:03:00]}
{[%emt 00:00:03]} Bg7 {[%clk 00:03:06]} {[%emt 00:00:01]} 4. Bg2 {[%clk
00:03:00]} {[%emt 00:00:02]} O-O {[%clk 00:03:06]} {[%emt 00:00:02]} 5. O-O
{[%clk 00:03:01]} d5 {[%clk 00:03:07]} 6. d4 {[%clk 00:02:58]} {[%emt
00:00:06]} dxc4 {[%clk 00:02:53]} {[%emt 00:00:16]} 7. Na3 {[%clk 00:02:58]}
{[%emt 00:00:02]} c5 {[%clk 00:02:35]} {[%emt 00:00:20]} 8. Nxc4 {[%clk
00:02:55]} {[%emt 00:00:05]} Be6 {[%clk 00:02:21]} {[%emt 00:00:16]} 9. Nfe5
{[%clk 00:02:41]} {[%emt 00:00:16]} Bd5 {[%clk 00:01:50]} {[%emt 00:00:33]} 10.
f3 {[%clk 00:02:35]} {[%emt 00:00:08]} cxd4 {[%clk 00:01:41]} {[%emt 00:00:11]}
11. Qxd4 {[%clk 00:02:30]} {[%emt 00:00:07]} Nc6 {[%clk 00:01:42]} 12. Nxc6
{[%clk 00:02:19]} {[%emt 00:00:13]} Bxc6 {[%clk 00:01:42]} {[%emt 00:00:02]} 13.
Qxd8 {[%clk 00:02:09]} {[%emt 00:00:11]} Rfxd8 {[%clk 00:01:43]} {[%emt
00:00:01]} 14. Bf4 {[%clk 00:01:58]} {[%emt 00:00:13]} Nd5 {[%clk 00:01:42]}
{[%emt 00:00:03]} 15. Be5 {[%clk 00:01:41]} {[%emt 00:00:19]} Bb5 {[%clk
00:01:28]} {[%emt 00:00:17]} 16. Bxg7 {[%clk 00:01:40]} {[%emt 00:00:04]} Bxc4
{[%clk 00:01:28]} 17. Bh6 {[%clk 00:01:26]} {[%emt 00:00:15]} Bxe2 {[%clk
00:01:24]} {[%emt 00:00:06]} 18. Rfe1 {[%clk 00:01:26]} {[%emt 00:00:03]} Bb5
{[%clk 00:01:15]} {[%emt 00:00:11]} 19. f4 {[%clk 00:01:14]} {[%emt 00:00:14]}
e6 {[%clk 00:01:16]} {[%emt 00:00:01]} 20. Rac1 {[%clk 00:01:01]} {[%emt
00:00:15]} Rac8 {[%clk 00:01:16]} {[%emt 00:00:01]} 21. Rxc8 {[%clk 00:00:39]}
{[%emt 00:00:24]} Rxc8 {[%clk 00:01:17]} {[%emt 00:00:01]} 22. Bxd5 {[%clk
00:00:39]} {[%emt 00:00:03]} exd5 {[%clk 00:01:15]} {[%emt 00:00:05]} 23. Re7
{[%emt 00:00:01]} Bc6 {[%clk 00:01:03]} {[%emt 00:00:13]} 24. Kf2 {[%clk
00:00:38]} {[%emt 00:00:04]} d4 {[%clk 00:00:58]} {[%emt 00:00:07]} 25. h4
{[%clk 00:00:28]} {[%emt 00:00:12]} Rd8 {[%clk 00:00:54]} {[%emt 00:00:06]} 26.
Ke2 {[%clk 00:00:25]} {[%emt 00:00:05]} Re8 {[%clk 00:00:34]} {[%emt 00:00:22]}
27. Rxe8+ {[%clk 00:00:25]} {[%emt 00:00:02]} Bxe8 {[%clk 00:00:36]} 28. Kd3
{[%clk 00:00:26]} 1/2-1/2

[Event "MČR v bleskovém šachu družstev 2019"]
[Site "Teplice, Czech Republic"]
[Date "2019.09.14"]
[Round "13.1"]
[White "Kociscak, Jiri"]
[Black "Novotny, Michal"]
[Result "1/2-1/2"]
[TimeControl "3 mim. + 2 s"]
[WhiteTitle "IM"]
[BlackTitle "FM"]
[WhiteFideId "322121"]
[BlackFideId "310980"]
[WhiteElo "2417"]
[BlackElo "2299"]

1. d4 {[%clk 00:03:03]} e6 {[%clk 00:03:01]} {[%emt 00:00:03]} 2. c4 {[%clk
00:03:04]} {[%emt 00:00:01]} d5 {[%clk 00:03:02]} 3. Nf3 {[%clk 00:03:05]}
{[%emt 00:00:02]} Nf6 {[%clk 00:03:03]} 4. g3 {[%clk 00:03:06]} {[%emt
00:00:01]} Be7 {[%clk 00:03:04]} 5. Bg2 {[%clk 00:03:07]} O-O {[%clk 00:03:04]}
{[%emt 00:00:03]} 6. O-O {[%clk 00:03:08]} {[%emt 00:00:02]} dxc4 {[%clk
00:03:05]} {[%emt 00:00:01]} 7. Qc2 {[%clk 00:03:09]} b6 {[%clk 00:03:06]}
{[%emt 00:00:01]} 8. Nbd2 {[%clk 00:02:53]} {[%emt 00:00:17]} Bb7 {[%clk
00:02:58]} {[%emt 00:00:10]} 9. Nxc4 {[%clk 00:02:52]} {[%emt 00:00:03]} c5
{[%clk 00:02:52]} {[%emt 00:00:08]} 10. Rd1 {[%clk 00:02:49]} {[%emt 00:00:05]}
Qc8 {[%clk 00:02:41]} {[%emt 00:00:14]} 11. dxc5 {[%clk 00:01:45]} {[%emt
00:01:06]} Bxc5 {[%clk 00:02:41]} {[%emt 00:00:01]} 12. Qb3 {[%clk 00:01:21]}
{[%emt 00:00:27]} Bd5 {[%clk 00:02:09]} {[%emt 00:00:33]} 13. Nfe5 {[%clk
00:01:21]} {[%emt 00:00:03]} Bxg2 {[%clk 00:02:00]} {[%emt 00:00:11]} 14. Kxg2
{[%clk 00:01:22]} {[%emt 00:00:01]} Nc6 {[%clk 00:01:56]} {[%emt 00:00:05]} 15.
Be3 {[%clk 00:00:59]} {[%emt 00:00:25]} Nxe5 {[%clk 00:01:49]} {[%emt
00:00:09]} 16. Nxe5 {[%clk 00:01:00]} {[%emt 00:00:02]} Qb7+ {[%clk 00:01:49]}
{[%emt 00:00:02]} 17. f3 {[%clk 00:00:59]} {[%emt 00:00:03]} Bxe3 {[%clk
00:01:47]} {[%emt 00:00:04]} 18. Qxe3 {[%clk 00:00:59]} {[%emt 00:00:01]} Rac8
{[%clk 00:01:38]} {[%emt 00:00:11]} 19. Rac1 {[%clk 00:00:59]} {[%emt
00:00:03]} Rxc1 {[%clk 00:01:31]} {[%emt 00:00:09]} 20. Rxc1 {[%clk 00:01:00]}
{[%emt 00:00:01]} Rc8 {[%clk 00:01:32]} {[%emt 00:00:01]} 21. Qd2 {[%clk
00:00:53]} {[%emt 00:00:09]} h6 {[%clk 00:01:24]} {[%emt 00:00:10]} 22. b4
{[%clk 00:00:42]} {[%emt 00:00:13]} Nd5 {[%clk 00:01:14]} {[%emt 00:00:12]} 23.
b5 {[%clk 00:00:40]} {[%emt 00:00:04]} Rxc1 {[%clk 00:00:34]} {[%emt 00:00:42]}
24. Qxc1 {[%clk 00:00:41]} {[%emt 00:00:01]} f6 {[%clk 00:00:28]} {[%emt
00:00:07]} 25. Nc6 {[%clk 00:00:33]} {[%emt 00:00:09]} Qd7 {[%clk 00:00:21]}
{[%emt 00:00:09]} 26. Qd2 {[%clk 00:00:28]} {[%emt 00:00:08]} Qc7 {[%clk
00:00:11]} {[%emt 00:00:12]} 27. Qd4 {[%clk 00:00:17]} {[%emt 00:00:13]} Ne7
{[%clk 00:00:07]} {[%emt 00:00:06]} 28. Qc4 {[%clk 00:00:18]} {[%emt 00:00:01]}
Nd5 {[%clk 00:00:07]} {[%emt 00:00:02]} 29. Kf2 {[%clk 00:00:18]} {[%emt
00:00:02]} Qd6 {[%clk 00:00:07]} {[%emt 00:00:02]} 30. e4 {[%clk 00:00:17]}
{[%emt 00:00:03]} Nc7 {[%clk 00:00:08]} 31. Nd4 {[%clk 00:00:12]} {[%emt
00:00:07]} Kh7 {[%clk 00:00:07]} {[%emt 00:00:03]} 32. a4 {[%clk 00:00:11]}
{[%emt 00:00:04]} e5 {[%clk 00:00:09]} 33. Nc2 {[%clk 00:00:12]} {[%emt
00:00:01]} Ne6 {[%clk 00:00:10]} 34. Qd5 {[%clk 00:00:12]} {[%emt 00:00:02]}
Qc7 {[%clk 00:00:10]} {[%emt 00:00:02]} 35. Qc6 {[%clk 00:00:12]} {[%emt
00:00:02]} Qe7 {[%clk 00:00:11]} {[%emt 00:00:02]} 36. Ne3 {[%clk 00:00:13]}
Nd4 {[%clk 00:00:11]} {[%emt 00:00:01]} 37. Qc3 {[%clk 00:00:12]} {[%emt
00:00:02]} Qd7 {[%clk 00:00:12]} {[%emt 00:00:02]} 38. Nd5 {[%clk 00:00:13]}
{[%emt 00:00:02]} Qh3 {[%clk 00:00:13]} {[%emt 00:00:01]} 39. Ke3 {[%clk
00:00:11]} {[%emt 00:00:03]} Qxh2 {[%emt 00:00:02]} 40. Qd3 {[%clk 00:00:11]}
{[%emt 00:00:01]} Qg1+ {[%clk 00:00:14]} {[%emt 00:00:01]} 41. Kd2 {[%clk
00:00:12]} {[%emt 00:00:01]} Qf2+ {[%clk 00:00:15]} {[%emt 00:00:01]} 42. Kc3
{[%clk 00:00:14]} {[%emt 00:00:01]} Qxf3 {[%clk 00:00:15]} {[%emt 00:00:01]} 43.
Qxf3 {[%clk 00:00:13]} Nxf3 {[%clk 00:00:16]} 44. Ne7 {[%clk 00:00:14]} {[%emt
00:00:01]} g5 {[%clk 00:00:17]} 45. Nc6 {[%clk 00:00:15]} {[%emt 00:00:01]} h5
{[%clk 00:00:18]} {[%emt 00:00:01]} 46. Nxa7 {[%clk 00:00:16]} {[%emt
00:00:01]} h4 {[%clk 00:00:19]} 47. gxh4 {[%clk 00:00:17]} {[%emt 00:00:01]}
gxh4 {[%clk 00:00:21]} 48. a5 {[%clk 00:00:19]} bxa5 {[%emt 00:00:04]} 49. b6
h3 {[%clk 00:00:19]} {[%emt 00:00:03]} 50. b7 {[%clk 00:00:22]} {[%emt
00:00:01]} h2 {[%clk 00:00:19]} {[%emt 00:00:01]} 51. b8=Q {[%clk 00:00:22]}
{[%emt 00:00:01]} h1=Q {[%clk 00:00:20]} 52. Qc7+ {[%clk 00:00:22]} {[%emt
00:00:03]} Kg6 {[%clk 00:00:22]} 53. Nc6 {[%clk 00:00:22]} {[%emt 00:00:02]}
Qc1+ {[%clk 00:00:22]} {[%emt 00:00:01]} 54. Kd3 {[%clk 00:00:22]} {[%emt
00:00:02]} Qd2+ {[%clk 00:00:23]} {[%emt 00:00:02]} 55. Kc4 {[%clk 00:00:23]}
{[%emt 00:00:01]} Qc2+ {[%clk 00:00:23]} {[%emt 00:00:01]} 56. Kd5 {[%clk
00:00:24]} {[%emt 00:00:01]} Qb3+ {[%clk 00:00:23]} {[%emt 00:00:02]} 57. Kd6
{[%clk 00:00:25]} {[%emt 00:00:01]} Kg5 {[%clk 00:00:23]} {[%emt 00:00:02]} 58.
Qg7+ {[%clk 00:00:25]} {[%emt 00:00:01]} Kf4 {[%clk 00:00:25]} 59. Qxf6+ {[%clk
00:00:26]} {[%emt 00:00:01]} Kxe4 {[%clk 00:00:25]} {[%emt 00:00:02]} 60. Qg6+
{[%clk 00:00:27]} {[%emt 00:00:02]} Ke3 {[%clk 00:00:25]} {[%emt 00:00:02]} 61.
Nxe5 {[%clk 00:00:26]} {[%emt 00:00:03]} Qb6+ {[%clk 00:00:25]} {[%emt
00:00:02]} 62. Nc6 {[%clk 00:00:27]} {[%emt 00:00:01]} Qxc6+ {[%clk 00:00:26]}
{[%emt 00:00:02]} 63. Kxc6 {[%clk 00:00:28]} {[%emt 00:00:01]} Ne5+ {[%clk
00:00:27]} 64. Kb5 {[%clk 00:00:30]} Nxg6 {[%clk 00:00:28]} {[%emt 00:00:01]}
65. Kxa5 {[%clk 00:00:31]} 1/2-1/2

[Event "MČR v bleskovém šachu družstev 2019"]
[Site "Teplice, Czech Republic"]
[Date "2019.09.14"]
[Round "13.2"]
[White "Rolinek, Dominik"]
[Black "Polak, Tomas"]
[Result "0-1"]
[TimeControl "3 mim. + 2 s"]
[BlackTitle "GM"]
[WhiteFideId "384569"]
[BlackFideId "300560"]
[WhiteElo "1885"]
[BlackElo "2510"]

1. d4 {[%clk 00:03:03]} {[%emt 00:09:31]} Nf6 {[%clk 00:03:03]} {[%emt
00:00:01]} 2. Bf4 {[%clk 00:03:04]} d5 {[%clk 00:03:02]} {[%emt 00:00:03]} 3.
e3 {[%clk 00:03:02]} {[%emt 00:00:03]} c5 {[%clk 00:03:03]} 4. c3 {[%clk
00:03:03]} {[%emt 00:00:02]} Nc6 {[%clk 00:03:04]} {[%emt 00:00:01]} 5. Nd2
{[%clk 00:03:03]} {[%emt 00:00:02]} Qb6 {[%clk 00:02:56]} {[%emt 00:00:09]} 6.
Qb3 {[%clk 00:03:04]} {[%emt 00:00:02]} c4 {[%clk 00:02:56]} {[%emt 00:00:03]}
7. Qc2 {[%clk 00:03:03]} {[%emt 00:00:03]} g6 {[%clk 00:02:52]} {[%emt
00:00:06]} 8. Ngf3 {[%clk 00:02:58]} {[%emt 00:00:07]} Bf5 {[%clk 00:02:53]}
{[%emt 00:00:02]} 9. Qc1 {[%clk 00:02:58]} {[%emt 00:00:01]} Rc8 {[%clk
00:02:51]} {[%emt 00:00:03]} 10. Be2 {[%clk 00:02:56]} {[%emt 00:00:05]} Bg7
{[%clk 00:02:51]} {[%emt 00:00:02]} 11. h3 {[%clk 00:02:46]} {[%emt 00:00:11]}
O-O {[%clk 00:02:51]} {[%emt 00:00:02]} 12. O-O {[%clk 00:02:46]} {[%emt
00:00:02]} Ne4 {[%clk 00:02:43]} {[%emt 00:00:10]} 13. Nxe4 {[%clk 00:02:32]}
{[%emt 00:00:16]} Bxe4 {[%clk 00:02:44]} {[%emt 00:00:01]} 14. Nd2 {[%clk
00:02:28]} {[%emt 00:00:06]} Bf5 {[%clk 00:02:38]} {[%emt 00:00:09]} 15. g4
{[%clk 00:02:28]} {[%emt 00:00:02]} Bd3 {[%clk 00:02:22]} {[%emt 00:00:18]} 16.
Bxd3 {[%clk 00:02:14]} {[%emt 00:00:16]} cxd3 {[%clk 00:02:23]} 17. Qb1 {[%clk
00:02:10]} {[%emt 00:00:06]} Qa6 {[%clk 00:02:21]} {[%emt 00:00:05]} 18. Nf3
{[%clk 00:01:49]} {[%emt 00:00:23]} f6 {[%clk 00:02:19]} {[%emt 00:00:04]} 19.
Rd1 {[%clk 00:01:38]} {[%emt 00:00:12]} e5 {[%clk 00:02:19]} {[%emt 00:00:02]}
20. Bg3 {[%clk 00:01:34]} {[%emt 00:00:06]} e4 {[%clk 00:02:18]} {[%emt
00:00:03]} 21. Nd2 {[%clk 00:01:27]} {[%emt 00:00:08]} f5 {[%clk 00:02:08]}
{[%emt 00:00:13]} 22. Kg2 {[%clk 00:01:25]} {[%emt 00:00:05]} fxg4 {[%clk
00:02:03]} {[%emt 00:00:06]} 23. hxg4 {[%clk 00:01:25]} {[%emt 00:00:01]} Ne7
{[%clk 00:02:03]} {[%emt 00:00:02]} 24. f3 {[%clk 00:01:23]} {[%emt 00:00:04]}
Qe6 {[%clk 00:01:59]} {[%emt 00:00:06]} 25. fxe4 {[%clk 00:00:38]} {[%emt
00:00:47]} dxe4 {[%clk 00:01:59]} {[%emt 00:00:01]} 26. g5 {[%clk 00:00:39]}
{[%emt 00:00:01]} Qg4 {[%clk 00:01:56]} {[%emt 00:00:05]} 27. Qc1 {[%clk
00:00:28]} {[%emt 00:00:12]} Nf5 {[%clk 00:01:43]} {[%emt 00:00:15]} 28. Nf1
{[%clk 00:00:28]} {[%emt 00:00:01]} Nh4+ {[%clk 00:01:42]} {[%emt 00:00:04]}
0-1

[Event "MČR v bleskovém šachu družstev 2019"]
[Site "Teplice, Czech Republic"]
[Date "2019.09.14"]
[Round "13.3"]
[White "Stocek, Jiri"]
[Black "Richtr, Zdenek"]
[Result "0-1"]
[TimeControl "3 mim. + 2 s"]
[WhiteTitle "GM"]
[WhiteFideId "304760"]
[BlackFideId "301248"]
[WhiteElo "2505"]
[BlackElo "2138"]

1. e4 {[%clk 00:03:03]} c5 {[%clk 00:03:03]} {[%emt 00:00:01]} 2. Nf3 {[%clk
00:03:03]} {[%emt 00:00:02]} Qc7 {[%clk 00:03:04]} 3. c3 {[%clk 00:02:58]}
{[%emt 00:00:07]} Nf6 {[%clk 00:03:04]} {[%emt 00:00:02]} 4. e5 {[%clk
00:02:57]} {[%emt 00:00:02]} Nd5 {[%clk 00:03:05]} 5. d4 {[%clk 00:02:57]}
{[%emt 00:00:03]} cxd4 {[%clk 00:03:05]} {[%emt 00:00:02]} 6. cxd4 {[%clk
00:02:51]} {[%emt 00:00:08]} e6 {[%clk 00:03:03]} {[%emt 00:00:05]} 7. Bd3
{[%clk 00:02:44]} {[%emt 00:00:09]} Nb4 {[%clk 00:02:31]} {[%emt 00:00:34]} 8.
Be4 {[%clk 00:02:36]} {[%emt 00:00:09]} d5 {[%clk 00:02:31]} {[%emt 00:00:02]}
9. exd6 {[%clk 00:02:36]} {[%emt 00:00:02]} Bxd6 {[%clk 00:02:32]} {[%emt
00:00:02]} 10. Nc3 {[%clk 00:02:28]} {[%emt 00:00:10]} h6 {[%clk 00:02:21]}
{[%emt 00:00:13]} 11. a3 {[%clk 00:01:59]} {[%emt 00:00:31]} N4c6 {[%clk
00:01:52]} {[%emt 00:00:31]} 12. O-O {[%clk 00:01:54]} {[%emt 00:00:07]} O-O
{[%clk 00:01:44]} {[%emt 00:00:10]} 13. d5 {[%clk 00:01:47]} {[%emt 00:00:09]}
exd5 {[%clk 00:00:54]} {[%emt 00:00:52]} 14. Bxd5 {[%clk 00:01:42]} {[%emt
00:00:08]} a6 {[%clk 00:00:52]} {[%emt 00:00:04]} 15. Re1 {[%clk 00:01:09]}
{[%emt 00:00:34]} Bg4 {[%clk 00:00:52]} {[%emt 00:00:03]} 16. h3 {[%clk
00:01:09]} {[%emt 00:00:02]} Bh5 {[%clk 00:00:51]} {[%emt 00:00:02]} 17. Qd3
{[%clk 00:00:31]} {[%emt 00:00:39]} Ne5 {[%clk 00:00:48]} {[%emt 00:00:06]} 18.
Nxe5 {[%clk 00:00:30]} {[%emt 00:00:03]} Bxe5 {[%clk 00:00:49]} {[%emt
00:00:02]} 19. g4 {[%clk 00:00:28]} {[%emt 00:00:04]} Bg6 {[%clk 00:00:48]}
{[%emt 00:00:02]} 20. Qxg6 {[%clk 00:00:27]} {[%emt 00:00:04]} Bxc3 {[%clk
00:00:42]} {[%emt 00:00:08]} 21. bxc3 {[%clk 00:00:25]} {[%emt 00:00:04]} Qxc3
{[%clk 00:00:41]} {[%emt 00:00:02]} 22. Bxh6 {[%clk 00:00:12]} {[%emt
00:00:16]} Nc6 {[%clk 00:00:41]} {[%emt 00:00:02]} 23. Rac1 {[%clk 00:00:05]}
{[%emt 00:00:08]} Qd4 {[%clk 00:00:39]} {[%emt 00:00:04]} 24. Rcd1 {[%clk
00:00:00]} {[%emt 00:00:07]} Qf6 {[%emt 00:00:07]} 0-1